Cogmind - Beta 13 @@@ ROGUE MODE // 2024.03.05 @ 12:16:33 Player: Demise Result: Destroyed by as-42304 with Assembled Rifle Performance ------------- Evolutions (0) 0 Regions Visited (4) 800 Robots Destroyed (28) 140 Value Destroyed (456) 456 Prototype IDs (25) 500 Alien Tech Used (0) 0 Bonus (-674) -674 TOTAL SCORE: 1222 Bonus ------- Aligned with FarCom 300 Friendly Fire -974 Cogmind --------- Core Integrity 0/250 Matter 240/300 Energy 250/250 System Corruption 0% Temperature Cool (8) Movement Rolling (135) Ox3 Location -9/Mines Parts ------- > --- POWER (1) -------- Ion Engine > --- PROPULSION (2) --- Wheel Compact Wheel > --- UTILITY (2) ------ Huge Storage Unit Light Armor Plating > --- WEAPON (2) ------- Heavy Assault Rifle Grenade Launcher > --- INVENTORY (25) --- Ion Engine Light Treads Light Treads Light Treads Flight Unit Flight Unit Improved Heat Sink Advanced Heat Sink High-capacity Matter Pod (168) Structural Scanner Seismic Detector Light Armor Plating Shield Generator Shield Generator Shield Generator Skeleton Box Light Assault Rifle Light Assault Rifle Light Assault Rifle Light Assault Rifle Grenade Launcher Grenade Launcher Explosive Trap Explosive Trap Explosive Trap Peak State ------------ > --- POWER ------------ Ion Engine > --- PROPULSION ------- Wheel Compact Wheel > --- UTILITY ---------- Huge Storage Unit Skeleton Box > --- WEAPON ----------- Light Assault Rifle Heavy Assault Rifle > --- INVENTORY -------- Ion Engine Light Treads Light Treads Light Treads Flight Unit Flight Unit Improved Heat Sink Advanced Heat Sink Structural Scanner Targeting Computer Light Armor Plating Light Armor Plating Light Armor Plating Shield Generator Shield Generator Shield Generator Light Assault Rifle Light Assault Rifle Light Assault Rifle Grenade Launcher Grenade Launcher Grenade Launcher Explosive Trap Explosive Trap Explosive Trap [Rating: 16] Favorites ----------- Power Ion Engine Engine Ion Engine Propulsion Compact Wheel Wheel Compact Wheel Utility Seismic Detector Device Seismic Detector Storage Huge Storage Unit Processor Targeting Computer Protection Light Armor Plating Weapon Light Assault Rifle Energy Gun EM Pulse Gun Ballistic Gun Light Assault Rifle Launcher Grenade Launcher Build | -11 -10 -10 -10 -9 ------- Run | Yrd Mat Min Exi Min Slots Evolved . | . . . . . Power . | . . . . . Propulsion . | . . . . . Utility . | . . . . . Weapon . | . . . . . Parts Attached 41 | 7 21 9 2 2 Power 4 | 1 3 . . . Engine 4 | 1 3 . . . Core . | . . . . . Reactor . | . . . . . Propulsion 8 | 2 4 2 . . Treads . | . . . . . Leg . | . . . . . Wheel 8 | 2 4 2 . . Hover . | . . . . . Flight . | . . . . . Utility 16 | 2 10 1 2 1 Device 10 | 1 6 1 2 . Storage 3 | 1 2 . . . Processor 1 | . 1 . . . Hackware . | . . . . . Protection 2 | . 1 . . 1 Artifact . | . . . . . Weapon 13 | 2 4 6 . 1 Energy Gun 1 | 1 . . . . Energy Cannon . | . . . . . Ballistic Gun 9 | 1 3 5 . . Ballistic Cannon . | . . . . . Launcher 3 | . 1 1 . 1 Special Weapon . | . . . . . Impact Weapon . | . . . . . Slashing Weapon . | . . . . . Piercing Weapon . | . . . . . Special Melee Weapon . | . . . . . Unidentified Prototypes . | . . . . . Parts Lost 3 | . 1 2 . . Power . | . . . . . Propulsion 1 | . 1 . . . Utility . | . . . . . Weapon 2 | . . 2 . . Highest Loss Streak 1 | . 1 1 . . To Critical Strikes . | . . . . . Average Slot Usage (%) 98 | . 97 100 99 100 Engine 14 | . 14 14 14 14 Wheel 27 | . 26 28 28 28 Device 9 | . 6 12 13 7 Storage 14 | . 14 14 14 14 Processor 1 | . 4 . . . Protection 1 | . 3 1 . 7 Ballistic Gun 27 | . 27 27 28 21 Naked Turns . | . . . . . Heaviest Build 91 | 12 91 91 90 90 Greatest Support 32 | 16 32 26 26 26 Greatest Overweight (x) 3 | 3 3 3 3 3 Average Overweight (x) 2 | . 1 3 3 3 Largest Inventory Capacity 25 | 8 25 25 25 25 Average Capacity 20 | 7 16 25 25 25 Most Carried 25 | 4 17 25 25 25 Average Carried 17 | 2 13 20 24 25 Final Capacity 25 | 8 25 25 25 25 Final Carried 25 | 3 17 25 25 25 Class Distribution -------------------- 78% | Mutant 21% | Scavenger-Mutant Dominant Class ---------------- Mutant | -10/Materials Mutant | -10/Mines Scavenger-Mutant | -10/Exiles Scavenger-Mutant | -9/Mines Resources | -11 -10 -10 -10 -9 ----------- Run | Yrd Mat Min Exi Min Matter Collected 858 | 218 445 163 32 . Remotely . | . . . . . Salvage Created 932 | 118 683 121 . 10 Parts 64 | 9 47 8 . . Haulers Intercepted 2 | . 2 . . . Recyclers Shooed 1 | . 1 . . . Parts Field Recycled . | . . . . . Retrieved Matter . | . . . . . Parts Self-Destructed . | . . . . . Prevented . | . . . . . Kills | -11 -10 -10 -10 -9 ------- Run | Yrd Mat Min Exi Min Combat Hostiles Destroyed 25 | . 11 4 . 10 Guns 12 | . 11 1 . . AOE 13 | . . 3 . 10 Classes Destroyed 7 | 2 4 . . 1 Tunneler 4 | 3 . 1 . . Hauler 2 | . 2 . . . Recycler 4 | 1 3 . . . Watcher 2 | . 2 . . . Swarmer 7 | . 3 4 . . Grunt 8 | . 8 . . . Assembled 10 | . . . . 10 Best Kill Streak 10 | 4 3 3 . 10 Combat Bots Only 10 | . 3 3 . 10 Max Kills in Single Turn 4 | 1 1 2 . 4 Gunslinging . | . . . . . Exploded 4 | . . 2 . 4 Melee . | . . . . . Uniques/NPCs Destroyed 1 | . . 1 . . YI-UF0 (-10/Mines) Combat | -11 -10 -10 -10 -9 -------- Run | Yrd Mat Min Exi Min Hostile Shots Fired 90 | . 47 31 . 12 Missed 15 | . 8 6 . 1 Damage Taken 975 | . 499 227 . 249 Core 257 | . 143 33 . 81 Absorbed by Shields . | . . . . . Core Remaining (%) 100 | 100 . . . . Volleys Fired 100 | 10 58 28 . 4 Largest 2 | 2 2 2 . 1 Hottest 60 | 60 40 43 . 30 Shots Fired 190 | 18 115 53 . 4 Gun 182 | 18 114 50 . . Cannon . | . . . . . Launcher 8 | . 1 3 . 4 Special . | . . . . . Kinetic 172 | 8 114 50 . . Thermal . | . . . . . Explosive 8 | . 1 3 . 4 Electromagnetic 10 | 10 . . . . Robot Hit Streak 12 | 4 8 12 . 2 Robot Miss Streak 4 | 3 4 3 . 1 Penetration Max . | . . . . . Secondary Targets . | . . . . . Shots Hit Robots 123 | 10 76 35 . 2 Core Hits 79 | 4 39 15 . 21 Critical Kills . | . . . . . Critical Parts Destroyed 2 | . 1 1 . . Critical Strikes 3 | 1 1 1 . . Destroy 2 | . 1 1 . . Corrupt 1 | 1 . . . . Melee Attacks . | . . . . . Impact . | . . . . . Slashing . | . . . . . Piercing . | . . . . . Sneak Attacks . | . . . . . Combat Hostiles . | . . . . . Follow-up Attacks . | . . . . . Damage Inflicted 1994 | 155 750 450 . 639 Guns 1150 | 118 750 282 . . Cannons . | . . . . . Explosions 844 | 37 . 168 . 639 Melee . | . . . . . Ramming . | . . . . . Kinetic 1057 | 25 750 282 . . Thermal 37 | 37 . . . . Explosive 807 | . . 168 . 639 Electromagnetic 93 | 93 . . . . Impact . | . . . . . Slashing . | . . . . . Piercing . | . . . . . Highest Corruption . | . . . . . Average Corruption . | . . . . . Corruption Purged . | . . . . . Corruption Blocked . | . . . . . Overload Shots . | . . . . . Overflow Damage 37 | . . 4 . 33 Projectiles . | . . . . . Explosions 37 | . . 4 . 33 Melee . | . . . . . Knockbacks . | . . . . . Impact . | . . . . . Kinetic . | . . . . . Secondary . | . . . . . Self-Inflicted Damage 76 | . . 18 . 58 Shots 4 | . . 1 . 3 Rammed . | . . . . . Targets Rammed . | . . . . . Kicked . | . . . . . Crushed . | . . . . . Highest Temperature 40 | 40 27 12 . 18 Average Temperature 10 | 22 8 5 . 11 Received Heat Transfer 316 | . 267 9 . 40 Siege Activations . | . . . . . Robots Corrupted . | . . . . . Combat Hostiles . | . . . . . Parts Fried . | . . . . . Impact Corruptions . | . . . . . Robots Melted . | . . . . . Combat Hostiles . | . . . . . Parts Melted 1 | 1 . . . . Heat Transferred 50 | 50 . . . . Parts Sabotaged . | . . . . . Parts Stolen . | . . . . . Parts Stripped . | . . . . . Power Chain Reactions 1 | 1 . . . . Alert | -11 -10 -10 -10 -9 ------- Run | Yrd Mat Min Exi Min Peak Influence 318 | 20 318 181 . 25 Initial 83 | . 13 83 . . Average 113 | 4 167 67 . 4 Maximum Alert Level 1 | . 1 . . . Low Security (%) 83 | 100 65 100 . 100 Level 1 16 | . 34 . . . Level 2 . | . . . . . Level 3 . | . . . . . Level 4 . | . . . . . Level 5 . | . . . . . High Security . | . . . . . Max Security . | . . . . . Squads Dispatched 3 | . 3 . . . Investigation 3 | . 3 . . . Extermination . | . . . . . Reinforcement . | . . . . . Assault . | . . . . . Garrison . | . . . . . Intercept . | . . . . . Searches Triggered . | . . . . . Construction Impeded . | . . . . . Haulers Reinforced . | . . . . . Active Scanning Responses . | . . . . . Cargo Convoy Interrupts . | . . . . . Stealth | -11 -10 -10 -10 -9 --------- Run | Yrd Mat Min Exi Min Distress Signals 1 | . 1 . . . Communications Jammed . | . . . . . Distress Signals . | . . . . . Times Spotted 46 | . 25 8 . 13 Peak Tracking Total 9 | . 5 3 . 9 Tactical Retreats 5 | . 4 1 . . Traps | -11 -10 -10 -10 -9 ------- Run | Yrd Mat Min Exi Min Traps Triggered 2 | . 2 . . . Indirectly . | . . . . . Trap Hack Attempts . | . . . . . Triggered . | . . . . . Disarmed . | . . . . . Reprogrammed . | . . . . . Reused . | . . . . . Traps Extracted . | . . . . . Installed . | . . . . . Triggered . | . . . . . Most Traps Carried 3 | . . 3 3 3 Machines | -11 -10 -10 -10 -9 ---------- Run | Yrd Mat Min Exi Min Machines Disabled . | . . . . . Max in Single Turn . | . . . . . Machines Repaired . | . . . . . Machines Dismantled . | . . . . . Machines Sabotaged . | . . . . . Overloaded Fab Kills . | . . . . . Hacking | -11 -10 -10 -10 -9 --------- Run | Yrd Mat Min Exi Min Machines Accessed 12 | . 10 . 2 . Terminals 8 | . 8 . . . Fabricators . | . . . . . Repair Stations . | . . . . . Recycling Units 2 | . 2 . . . Scanalyzers . | . . . . . Garrison Access . | . . . . . Total Hacks 28 | . 26 . 2 . Successful 17 | . 15 . 2 . Failed 10 | . 10 . . . Catastrophic . | . . . . . Database Lockouts 1 | . 1 . . . Manual 17 | . 16 . 1 . Terminals 22 | . 22 . . . Fabricators . | . . . . . Repair Stations . | . . . . . Recycling Units 4 | . 4 . . . Scanalyzers . | . . . . . Garrison Access . | . . . . . Terminal Hacks 9 | . 7 . 2 . Record 1 | . . . 1 . Robot Analysis 1 | . 1 . . . Prototype ID Bank 1 | . 1 . . . Terminal Index 1 | . 1 . . . Locate Traps 1 | . 1 . . . Hauler Manifests 1 | . 1 . . . Registered Prototypes 1 | . 1 . . . Zone Layout 1 | . 1 . . . Derelict Proto ID Bank 1 | . . . 1 . Fabricator Hacks . | . . . . . Repair Station Hacks . | . . . . . Recycling Unit Hacks 1 | . 1 . . . Retrieve Components 1 | . 1 . . . Scanalyzer . | . . . . . Garrison Access Hacks . | . . . . . Unauthorized Hacks 7 | . 7 . . . Terminals 6 | . 6 . . . Botnet 5 | . 5 . . . Operators 1 | . 1 . . . Fabricators . | . . . . . Repair Stations . | . . . . . Recycling Units 1 | . 1 . . . Tunnel 1 | . 1 . . . Scanalyzers . | . . . . . Garrison Access . | . . . . . Data Cores Recovered . | . . . . . Used . | . . . . . Hacking Detections 8 | . 8 . . . Full Trace Events . | . . . . . Feedback Events . | . . . . . Feedback Blocked . | . . . . . Robot Schematics Acquired . | . . . . . Robots Built . | . . . . . Authchips . | . . . . . Time . | . . . . . Total Robot Build Rating . | . . . . . Part Schematics Acquired . | . . . . . Parts Built . | . . . . . Authchips . | . . . . . Time . | . . . . . Total Part Build Rating . | . . . . . Parts Repaired . | . . . . . Time . | . . . . . Parts Recycled . | . . . . . Recycled Matter . | . . . . . Retrieved Matter . | . . . . . Retrieved Components 9 | . 9 . . . Parts Scanalyzed . | . . . . . Part Schematics Acquired . | . . . . . Parts Damaged . | . . . . . Bothacking | -11 -10 -10 -10 -9 ------------ Run | Yrd Mat Min Exi Min Used RIF Installer . | . . . . . Robots Hacked . | . . . . . Non-combat . | . . . . . Combat . | . . . . . Robot Hacks Applied . | . . . . . Relay Couplers Released . | . . . . . Fabnet Peak Effective % . | . . . . . Robots Rewired . | . . . . . Allies Hacked . | . . . . . Hacks Repelled . | . . . . . Allies | -11 -10 -10 -10 -9 -------- Run | Yrd Mat Min Exi Min Total Allies 1 | . . 1 . . Largest Group 1 | . . 1 . . Highest-Rated Group 31 | . . 31 . . Highest-Rated Ally 31 | . . 31 . . Total Orders . | . . . . . Ally Attacks 2 | . . 2 . . Total Damage 22 | . . 22 . . Kills . | . . . . . Allies Corrupted . | . . . . . Allies Melted . | . . . . . Intel | -11 -10 -10 -10 -9 ------- Run | Yrd Mat Min Exi Min Robot Analysis Total 1 | . 1 . . . Derelict Logs Recovered 1 | . . 1 . . Drone Launches . | . . . . . Drone Recoveries . | . . . . . Exploration | -11 -10 -10 -10 -9 ------------- Run | Yrd Mat Min Exi Min Turns Passed 2456 | 86 1016 951 376 27 Spaces Moved 1628 | 43 668 632 273 12 Core 13 | 13 . . . . Treads . | . . . . . Legs . | . . . . . Wheels 1615 | 30 668 632 273 12 Hover . | . . . . . Flight . | . . . . . Fastest Speed 50 | 50 90 135 135 135 Average Speed 123 | 105 107 135 135 135 Slowest Speed 200 | 200 135 135 135 135 Overloaded Moves . | . . . . . Propulsion Burnouts . | . . . . . Robots Hopped . | . . . . . Cave-ins Triggered . | . . . . . Exploration Rate (%) 55 | 4 96 97 68 10 Regions Visited 4 Branch Regions 3 Pre-discovered Areas 2 | . 1 . 1 . Known Exits Taken . | . . . . . Unknown Exits Taken 4 | 1 1 1 1 . Scrap Searched 1 | . . 1 . . Spaces Dug . | . . . . . Terrain Destroyed 56 | . 7 17 . 32 Melee . | . . . . . Projectile . | . . . . . AOE 56 | . 7 17 . 32 Terrain Rammed . | . . . . . Walls Destroyed . | . . . . . Machines Disabled . | . . . . . Actions | -11 -10 -10 -10 -9 --------- Run | Yrd Mat Min Exi Min Total 1927 | 64 878 685 282 18 Wait 87 | . 83 4 . . Move 1624 | 42 667 631 272 12 Hop . | . . . . . Pick Up 43 | 5 26 9 3 . Fast Attach 9 | 5 2 . 2 . Attach 8 | 2 3 3 . . Detach 4 | . 3 1 . . Swap 24 | . 16 6 . 2 Drop 28 | . 20 3 5 . Fire 100 | 10 58 28 . 4 Melee . | . . . . . Ram . | . . . . . Kick . | . . . . . Crush . | . . . . . Escape Stasis . | . . . . . Rewire . | . . . . . Trap . | . . . . . Miscellaneous . | . . . . . Route ------- -11/Scrapyard -10/Materials (discovered 4 exits: [*Mat x2] / [*Min x2]) -10/Mines (discovered 3 exits: [*Mat x2] / *Exi) -10/Exiles -9/Mines History --------- Turn | Location | Event 30 | -11/Scrapyard | Discovered new exit (range 16) 87 | -11/Scrapyard | Entered Materials 305 | -10/Materials | Discovered new exit (range 14) 350 | -10/Materials | Build established: Mutant 383 | -10/Materials | Discovered new exit (range 16) 544 | -10/Materials | Central database locked down 637 | -10/Materials | Discovered new exit (range 16) 673 | -10/Materials | Discovered new exit (range 6) 902 | -10/Materials | Core integrity fell below 50% 1103 | -10/Materials | Entered Mines 1186 | -10/Mines | Learned 4 Materials zone layouts 1282 | -10/Mines | Discovered new exit (range 5) 1321 | -10/Mines | YI-UF0 nonchalantly dropped a Grenade Launcher on the ground 1358 | -10/Mines | Murdered YI-UF0 1358 | -10/Mines | Destroyed YI-UF0 1482 | -10/Mines | Found a hidden stash of uninstalled traps 1517 | -10/Mines | Deemed a non-threat by the Exiles lab entrance 1517 | -10/Mines | Discovered new exit (range 5) 1664 | -10/Mines | Received a Mining Laser from a helpful Derelict 1795 | -10/Mines | Joined a pair of Derelicts in attacking an 0b10 outpost 1986 | -10/Mines | Discovered new exit (range 8) 2054 | -10/Mines | Entered Exiles 2094 | -10/Exiles | Met 8R-AWN 2114 | -10/Exiles | Met EX-HEX 2159 | -10/Exiles | Met EX-BIN 2175 | -10/Exiles | Aligned with FarCom system 2176 | -10/Exiles | Given EX-Vault access code 2207 | -10/Exiles | Opened EX-Vault 2220 | -10/Exiles | Found Skeleton Box 2246 | -10/Exiles | Build established: Scavenger-Mutant 2250 | -10/Exiles | Warned to stay clear of 0b10 Research branches 2291 | -10/Exiles | Met EX-DEC 2371 | -10/Exiles | Learned location of Zion (-7) 2418 | -10/Exiles | Discovered new exit (range 10) 2430 | -10/Exiles | Left Exiles lab with Skeleton Box 2430 | -10/Exiles | Entered Mines 2432 | -9/Mines | Met a Derelict bent on vengeance 2434 | -9/Mines | Assembled infested the area 2452 | -9/Mines | Core integrity fell below 20% 2457 | -9/Mines | Destroyed by as-42304 with Assembled Rifle Last Messages --------------- GOAL=ESCAPE 02430_ Receiving FarCom transmissions... 02431_ K-01 Serf collects debris. 02434_ ALERT: Infestation in the mines, dispatching Demolisher response squad. 02434_ K-01 Serf collects debris. 02450_ as-78308 destroyed. 02451_ K-01 Serf cleans the Laser Drill. 02452_ as-69353 destroyed. 02452_ as-23231 destroyed. 02452_ Destroyed Asb. F-torch. 02452_ Destroyed Asb. Hover Unit. 02452_ as-88702 destroyed. 02452_ as-52371 destroyed. 02454_ as-25829 destroyed. 02454_ as-13146 destroyed. 02455_ K-01 Serf collects debris. 02456_ as-72168 destroyed. 02456_ as-01868 destroyed. 02456_ as-08899 destroyed. Map ----- +----------------------------------------------------+ | | | | | | | | | | | | | | | ????????????????????????????????????????? | | ????????????????????????????????????????? | | ????????????????????????????????????????? | | ?????????############???????????????????? | | ?????????# #???????????????????? | | ?????????# #???????????????????? | | ?????????# #???????????????????? | | ?????????# """ #???????????????????? | | ?????????# """ #???????????????????? | | ?????????# """ #???????????????????? | | ?????????# k #???????????????????? | | ?????????# """ """ #???????????????????? | | ?????????# """k""" #???????????????????? | | ?????????# """ """ #???????????????????? | | ?????????# #???????????????????? | | ?????????# """ """ #???????????????????? | | ?????????# """ """ #???????????????????? | | ?????????# """ """ ##??????????????????? | | ?????????# @ #??????????????????? | | ?????????# % #?????????????????? | | ?????????### ###?????????????????? | | ???????????# #??????????????????? | | ???????????# ##??????????????????? | | ???????????# ???????????????????? | | ???????????# ##??????????????????? | | ???????????##a ##???????????????????? | | ???????????? a ## ????????????????????? | | ????????????###??## ????????????????????? | | ??????????????????? #???????????????????? | | ??????????????????? #???????????????????? | | ??????????????????? #???????????????????? | | ????????????????????#???????????????????? | | ????????????????????????????????????????? | | ????????????????????????????????????????? | | ????????????????????????????????????????? | | ????????????????????????????????????????? | | ????????????????????????????????????????? | | ????????????????????????????????????????? | | ????????????????????????????????????????? | | ????????????????????????????????????????? | | ????????????????????????????????????????? | | ????????????????????????????????????????? | | ????????????????????????????????????????? | +----------------------------------------------------+ Best States ------------- Heat Dissipation 35 Energy Generation 10 Energy Capacity 250 Matter Stores 300 Matter Capacity 300 Sight Range 16 Terrain Scan Density 10 Armor Coverage 150 Evasion (%) 42 Targeting Accuracy 5 Item Schematics ----------------- None Robot Schematics ------------------ None Fabricated ------------ Nothing Alien Tech Used ----------------- None Achievements -------------- None Challenges ------------ None Game ------ Seed ChromaticTransportTendrils Manual? 0 Play Time 00:28:11 Cumulative 667.7 hours Start 2024.02.27 @ 21:28:40 End 2024.03.05 @ 12:16:33 Sessions 2 Manual Loads 0 Difficulty Rogue Special Mode None Game No. 559 Rogue 559 Adventurer 0 Explorer 0 Win Type - Total 8 Types 7/0/0/1/0/0/0/0/0 Lore% 69 Gallery% 82 Achievement% 69 Wizard Run 0 Options --------- Layout 1 ASCII 0 Keyboard 1 Movement Numpad Keybinds 0 Fullscreen 1 Font 24/Tamsyn Map View 50x35 Zoom Use 3% Tactical HUD 1 Map Filters NONE Filters NONE Steam 1 RUN: b526349a-f9d3-48e9-8d0d-05affd7210ee